bitfinex-derivatives/quotes_SOLF0:USTF0_20251018
["timestamp","ask_amount","ask_price","bid_price","bid_amount"]
[1760819340613,2.58,187.3,187.27,7.63851959]
[1760819341912,2.58,187.3,187.27,4.91851959]
[1760819342105,2.58,187.3,187.28,2.72]
[1760819342310,46.66,187.3,187.28,2.72]
[1760819342909,2.58,187.27,187.25,2.72]
[1760819343108,2.58,187.27,187.24,4.91851959]
[1760819343109,2.58,187.28,187.26,2.72]
[1760819343415,46.66,187.28,187.26,7.63851959]
[1760819344012,46.66,187.28,187.26,4.91851959]
[1760819344513,2.58,187.3,187.27,7.63851959]
[1760819344713,2.58,187.3,187.28,2.72]
[1760819345015,44.08,187.3,187.28,2.72]
[1760819345211,10.7209843,187.33,187.28,2.72]
[1760819345415,46.66,187.32,187.26,4.91851959]
[1760819345715,8.1409843,187.33,187.28,2.72]
[1760819346013,2.58,187.31,187.28,2.72]
[1760819347710,46.66,187.31,187.28,2.72]
[1760819347911,2.58,187.31,187.28,2.72]
[1760819348106,10.9109843,187.33,187.29,2.76]
[1760819348311,2.77,187.32,187.29,2.76]
[1760819348512,46.85,187.32,187.29,2.76]
[1760819348916,2.77,187.32,187.29,2.76]
[1760819349415,46.85,187.32,187.29,2.76]
[1760819351117,2.77,187.32,187.29,2.76]
[1760819351412,46.85,187.32,187.29,2.76]
[1760819351918,44.08,187.31,187.29,2.76]
[1760819352315,2.77,187.32,187.29,2.76]
[1760819352518,44.08,187.31,187.29,2.76]
[1760819353420,46.85,187.31,187.29,2.76]
[1760819353622,2.77,187.31,187.29,2.76]
[1760819353815,2.77,187.3,187.28,4.91851959]
[1760819354119,2.77,187.32,187.29,2.76]
[1760819354517,44.08,187.31,187.29,2.76]
[1760819354718,46.85,187.31,187.29,2.76]
[1760819355019,2.77,187.31,187.28,4.91851959]
[1760819355215,44.08,187.31,187.28,7.67851959]
[1760819355419,2.77,187.3,187.28,7.67851959]
[1760819357715,44.08,187.31,187.29,2.7]
[1760819357914,46.88,187.31,187.29,2.7]
[1760819358815,2.8,187.31,187.29,2.7]
[1760819359017,42.78,187.31,187.29,7.61851959]
[1760819359319,2.8,187.31,187.29,7.61851959]
[1760819359522,46.88,187.31,187.29,7.61851959]
[1760819359922,2.8,187.31,187.29,7.61851959]
[1760819360122,42.78,187.31,187.29,7.61851959]
[1760819360619,2.8,187.31,187.29,7.61851959]
[1760819360823,36.72,187.31,187.29,7.61851959]
[1760819361219,8.1409843,187.33,187.29,4.91851959]
[1760819361525,46.88,187.32,187.29,7.61851959]
[1760819361725,2.8,187.31,187.29,7.61851959]
[1760819362623,2.8,187.31,187.28,7.61851959]
[1760819362927,46.88,187.31,187.28,7.61851959]
[1760819363417,2.8,187.31,187.28,7.61851959]
[1760819363817,29.84,187.31,187.28,7.61851959]
[1760819364621,2.8,187.3,187.28,4.91851959]
[1760819365218,2.8,187.3,187.28,7.61851959]
[1760819365418,2.8,187.3,187.28,4.91851959]
[1760819365622,46.88,187.31,187.28,4.91851959]
[1760819365816,44.08,187.31,187.28,4.91851959]
[1760819366118,2.8,187.3,187.28,4.91851959]
[1760819366518,4.8034,187.32,187.27,4.91851959]
[1760819366718,2.8,187.3,187.27,4.91851959]
[1760819366918,2.8,187.29,187.27,4.91851959]
[1760819367124,2.8,187.28,187.27,4.91851959]
[1760819370220,48.8839,187.3,187.27,4.91851959]
[1760819370221,7.6039,187.3,187.27,7.61851959]
[1760819370427,43.22,187.29,187.27,7.61851959]
[1760819370727,51.6839,187.3,187.27,7.61851959]
[1760819371328,46.88,187.29,187.27,7.61851959]
[1760819372728,2.8,187.29,187.27,7.61851959]
[1760819373028,45.36,187.29,187.27,7.61851959]
[1760819373328,46.88,187.29,187.27,7.61851959]
[1760819373728,2.8,187.31,187.27,4.91851959]
[1760819374026,46.02,187.3,187.27,4.91851959]
[1760819374218,2.8,187.3,187.27,4.91851959]
[1760819374417,2.8,187.3,187.28,7.61851959]
[1760819374616,2.8,187.29,187.28,4.91851959]
[1760819378832,8.1412843,187.32,187.28,4.91851959]
[1760819379124,2.8,187.3,187.28,4.91851959]
[1760819382433,2.8,187.3,187.28,7.61851959]
[1760819383930,2.8,187.29,187.28,4.91851959]
[1760819384532,2.8,187.29,187.28,7.61851959]
[1760819384927,4.8037,187.31,187.28,7.61851959]
[1760819385129,2.8,187.3,187.28,7.61851959]
[1760819385533,7.6037,187.31,187.29,2.7]
[1760819385928,2.8,187.3,187.29,2.7]
[1760819386123,2.8,187.3,187.28,7.61851959]
[1760819390834,44.08,187.31,187.29,2.68]
[1760819391133,44.08,187.31,187.3,2.68]
[1760819391331,6.0677843,187.32,187.3,2.68]
[1760819392136,50.1477843,187.32,187.3,2.68]
[1760819392436,2.73,187.31,187.29,4.91851959]
[1760819392629,2.73,187.31,187.29,7.59851959]
[1760819394033,2.73,187.31,187.28,4.91851959]
[1760819394234,46.81,187.31,187.28,4.91851959]
[1760819394539,2.73,187.31,187.28,7.59851959]
[1760819394738,46.81,187.31,187.28,7.59851959]
[1760819394938,2.73,187.31,187.28,7.59851959]
[1760819395235,46.81,187.31,187.28,7.59851959]
[1760819396139,2.73,187.31,187.28,7.59851959]
[1760819396340,46.81,187.31,187.28,7.59851959]
[1760819396842,2.73,187.31,187.29,2.68]
[1760819397235,46.81,187.31,187.29,2.68]
[1760819397836,2.73,187.31,187.29,7.59851959]
[1760819398041,2.73,187.31,187.3,2.68]
[1760819399039,2.73,187.31,187.29,4.91851959]
[1760819399240,2.73,187.31,187.29,7.59851959]
[1760819400445,7.5328,187.35,187.3,2.68]
[1760819400837,2.73,187.35,187.31,2.68]
[1760819401037,3.3377843,187.41,187.35,2.68]
[1760819401244,46.81,187.4,187.34,2.68]
[1760819401438,44.08,187.42,187.35,2.68]
[1760819401639,4.8008,187.42,187.35,2.68]
[1760819401845,44.08,187.42,187.35,4.91851959]
[1760819402039,44.08,187.42,187.38,2.68]
[1760819402542,3.3377843,187.43,187.36,2.68]
[1760819402741,4.8009,187.42,187.36,2.68]
[1760819402942,4.8009,187.42,187.35,4.91851959]
[1760819403139,2.73,187.45,187.35,2.68]
[1760819403441,2.73,187.45,187.39,2.68]
[1760819403642,3.3377843,187.44,187.39,2.68]
[1760819403848,2.73,187.43,187.39,2.68]
[1760819404139,4.8002,187.45,187.37,4.91851959]
[1760819404140,44.12,187.45,187.37,4.91851959]
[1760819404340,2.73,187.46,187.38,2.68]
[1760819404743,3.3377843,187.47,187.38,2.68]
[1760819404947,6.0677843,187.47,187.39,2.68]
[1760819405247,2.73,187.45,187.39,2.68]
[1760819405946,46.85,187.45,187.39,2.68]
[1760819406640,44.12,187.45,187.39,2.68]
[1760819406844,4.8,187.46,187.39,2.68]
[1760819407747,6.0077843,187.41,187.34,2.78]
[1760819408149,2.67,187.41,187.34,2.78]
[1760819408342,44.14,187.4,187.34,2.78]
[1760819408739,44.16,187.41,187.34,2.78]
[1760819408951,8.1383843,187.43,187.34,2.78]
[1760819409343,44.16,187.42,187.34,2.78]
[1760819409548,8.1383843,187.43,187.34,2.78]
[1760819409743,44.14,187.42,187.34,2.78]
[1760819409947,7.471,187.42,187.34,2.78]
[1760819410640,48.9412,187.41,187.34,2.78]
[1760819411363,6.0077843,187.4,187.34,2.78]
[1760819411551,3.3377843,187.4,187.31,2.78]
[1760819411746,2.67,187.36,187.31,2.78]
[1760819411952,2.67,187.36,187.29,4.91851959]
[1760819411953,2.67,187.35,187.29,4.91851959]
[1760819412952,7.4718,187.38,187.3,2.78]
[1760819413154,43.1118,187.38,187.31,2.78]
[1760819413657,7.4718,187.38,187.31,2.78]
[1760819415766,51.6318,187.38,187.31,2.78]
[1760819416268,2.67,187.36,187.29,4.91851959]
[1760819416765,2.67,187.36,187.3,2.7]
[1760819417467,7.4725,187.36,187.3,2.7]
[1760819418266,2.67,187.36,187.3,2.7]
[1760819426376,2.67,187.36,187.3,7.61851959]
[1760819426771,2.67,187.36,187.31,4.8034]
[1760819426968,2.67,187.36,187.32,2.7]
[1760819428567,2.67,187.36,187.33,2.7]
[1760819430277,2.64,187.38,187.31,9.72191959]
[1760819432376,2.64,187.38,187.32,2.7]
[1760819438482,2.64,187.38,187.32,7.61851959]
[1760819438974,2.64,187.38,187.32,12.42171959]
[1760819439182,7.4412,187.41,187.34,2.7]
[1760819439486,2.64,187.41,187.35,4.8025]
[1760819439781,2.64,187.41,187.35,2.7]
[1760819439980,2.64,187.41,187.35,7.61851959]
[1760819440978,2.64,187.41,187.36,4.8022]
[1760819441176,2.64,187.41,187.37,2.7]
[1760819442383,2.64,187.41,187.36,9.72071959]
[1760819442679,2.64,187.44,187.38,2.7]
[1760819443081,46.78,187.44,187.39,4.8014]
[1760819443276,2.64,187.44,187.41,2.7]
[1760819443983,4.7996,187.47,187.42,2.7]
[1760819444178,2.64,187.46,187.38,4.91851959]
[1760819444381,2.64,187.46,187.39,2.7]
[1760819444587,44.14,187.47,187.43,2.7]
[1760819444888,2.64,187.47,187.44,2.7]
[1760819445282,44.14,187.49,187.43,4.8004]
[1760819445582,55.9777843,187.5,187.43,7.5004]
[1760819445782,44.12,187.49,187.43,7.5004]
[1760819445992,55.9777843,187.5,187.43,7.5004]
[1760819446384,44.12,187.49,187.43,7.5004]
[1760819447286,2.82,187.49,187.43,2.79]
[1760819447692,46.94,187.49,187.43,2.79]
[1760819447986,46.94,187.49,187.42,4.91851959]
[1760819447987,50.0,187.5,187.45,2.79]
[1760819448289,52.82,187.5,187.46,2.79]
[1760819448584,52.82,187.5,187.45,2.79]
[1760819448888,52.82,187.5,187.45,4.7998]
[1760819449089,52.82,187.5,187.46,2.79]
[1760819449483,50.0,187.5,187.47,2.79]
[1760819449681,50.0,187.5,187.46,4.7996]
[1760819449883,50.0,187.5,187.47,2.79]
[1760819450289,50.0,187.5,187.46,4.7996]
[1760819451083,50.0,187.5,187.45,2.79]
[1760819451286,2.82,187.49,187.45,2.79]
[1760819451483,50.0,187.5,187.44,7.70851959]
[1760819452289,50.0,187.5,187.44,2.79]
[1760819452694,94.12,187.5,187.44,2.79]
[1760819453096,2.82,187.49,187.46,2.79]
[1760819453292,2.82,187.49,187.45,4.7998]
[1760819453492,44.12,187.49,187.45,4.7998]
[1760819454091,50.0,187.5,187.45,4.7998]
[1760819454394,44.1,187.49,187.45,4.7998]
[1760819454597,2.82,187.48,187.45,4.7998]
[1760819454796,50.0,187.5,187.45,4.7998]
[1760819455100,52.82,187.5,187.46,2.79]
[1760819455398,52.82,187.5,187.46,7.5896]
[1760819455998,96.94,187.5,187.46,7.5896]
[1760819456193,52.82,187.5,187.46,7.5896]
[1760819456394,96.94,187.5,187.46,7.5896]
[1760819456596,50.0,187.5,187.46,4.7996]
[1760819456791,2.82,187.49,187.46,4.7996]
[1760819456992,50.0,187.5,187.47,7.5893]
[1760819457399,52.82,187.5,187.47,7.5893]
[1760819457800,96.94,187.5,187.47,7.5893]
[1760819457997,52.82,187.5,187.47,7.5893]
[1760819458191,96.94,187.5,187.47,7.5893]
[1760819458496,52.82,187.5,187.47,7.5893]
[1760819459203,96.94,187.5,187.47,7.5893]
[1760819459402,52.82,187.5,187.47,7.5893]
[1760819459605,96.94,187.5,187.47,7.5893]
[1760819460298,52.82,187.5,187.47,7.5893]
[1760819460597,2.82,187.49,187.47,4.7993]
[1760819461598,96.92,187.5,187.47,4.7993]
[1760819461796,2.82,187.49,187.47,4.7993]
[1760819463806,94.1,187.5,187.48,7.5891]
[1760819464006,50.0,187.5,187.48,7.5891]
[1760819464404,94.1,187.5,187.48,7.5891]
[1760819464606,96.92,187.5,187.48,7.5891]
[1760819464807,96.92,187.5,187.48,4.7991]
[1760819465308,52.82,187.5,187.48,4.7991]
[1760819465508,96.9,187.5,187.48,4.7991]
[1760819467204,50.0,187.5,187.48,4.7991]
[1760819467403,50.0,187.5,187.49,2.78]
[1760819469599,50.0,187.5,187.48,4.7991]
[1760819469803,52.67,187.5,187.48,4.7991]
[1760819470207,2.67,187.49,187.48,4.7991]
[1760819470611,46.75,187.49,187.48,4.7991]
[1760819470801,2.67,187.49,187.48,4.7991]
[1760819471000,46.75,187.49,187.48,4.7991]
[1760819471408,2.67,187.49,187.48,4.7991]
[1760819471805,46.75,187.49,187.48,4.7991]
[1760819473914,2.67,187.49,187.48,4.7991]
[1760819474113,46.75,187.49,187.48,4.7991]
[1760819476913,2.67,187.49,187.48,4.7991]
[1760819477817,46.73,187.49,187.48,4.7991]
[1760819478510,2.67,187.49,187.48,4.7991]
[1760819479221,44.06,187.49,187.48,4.7991]
[1760819479417,50.0,187.5,187.48,4.7991]
[1760819479817,11.71398701,187.5,187.49,2.63]
[1760819480013,11.71398701,187.5,187.49,7.54851959]
[1760819480014,8.701e-05,187.5,187.49,7.54851959]
[1760819480215,8.701e-05,187.5,187.49,2.63]
[1760819480414,2.7,187.62,187.49,5.94870781]
[1760819480610,2.7,187.62,187.48,3.3377843]
[1760819480611,2.7,187.62,187.52,2.63]
[1760819480815,2.7,187.6,187.51,4.88780417]
[1760819481019,2.7,187.58,187.5,4.88780417]
[1760819481210,2.7,187.58,187.51,2.63]
[1760819481414,44.14,187.57,187.51,2.63]
[1760819481619,2.7,187.58,187.51,2.63]
[1760819481819,2.7,187.6,187.53,4.88780417]
[1760819482018,2.7,187.58,187.54,2.63]
[1760819482318,26.12,187.6,187.54,7.51780417]
[1760819482520,46.86,187.6,187.54,7.51780417]
[1760819483121,46.86,187.6,187.55,4.7974]
[1760819483422,2.7,187.59,187.55,7.4274]
[1760819483818,3.3377843,187.61,187.55,7.4274]
[1760819484018,3.3377843,187.61,187.55,12.31520417]
[1760819485225,2.7,187.62,187.58,2.63]
[1760819485421,4.7943,187.68,187.58,2.63]
[1760819485422,2.7,187.63,187.58,2.63]
[1760819485616,2.7,187.63,187.57,4.7969]
[1760819485822,46.86,187.63,187.57,4.7969]
[1760819486213,2.7,187.7,187.59,7.4264]
[1760819486425,3.3377843,187.66,187.58,4.88780417]
[1760819486626,2.7,187.65,187.58,4.88780417]
[1760819486818,44.16,187.64,187.58,4.88780417]
[1760819487019,2.7,187.65,187.58,12.31440417]
[1760819487726,46.86,187.65,187.58,12.31440417]
[1760819487927,6.0377843,187.66,187.6,4.7962]
[1760819488225,2.7,187.64,187.6,7.4262]
[1760819490216,47.4777843,187.67,187.61,2.63]
[1760819490217,2.7,187.67,187.61,2.63]
[1760819490420,2.7,187.66,187.6,4.7962]
[1760819491224,2.7,187.66,187.58,7.51780417]
[1760819491225,2.7,187.72,187.63,2.63]
[1760819491538,6.0377843,187.72,187.63,2.63]
[1760819491727,2.7,187.72,187.63,2.63]
[1760819492033,3.3377843,187.68,187.62,84.58935197]
[1760819492323,2.7,187.7,187.62,84.58935197]
[1760819492626,2.7,187.68,187.62,84.58935197]
[1760819493329,2.7,187.68,187.62,89.38495197]
[1760819493724,4.7928,187.74,187.63,2.63]
[1760819493931,6.0377843,187.73,187.63,2.63]
[1760819494232,6.0377843,187.73,187.65,2.63]
[1760819495129,2.7,187.69,187.63,4.86769096]
[1760819495429,2.7,187.69,187.62,84.58935197]
[1760819495826,3.3377843,187.67,187.62,87.21935197]
[1760819496029,3.3377843,187.67,187.62,84.58935197]
[1760819496328,3.3377843,187.67,187.59,4.86769096]
[1760819496525,2.7,187.63,187.57,4.86769096]
[1760819497131,2.7,187.63,187.57,7.49769096]
[1760819497428,2.7,187.63,187.57,2.63]
[1760819497729,2.7,187.6,187.54,4.86769096]
[1760819497927,2.7,187.6,187.53,7.4278]
[1760819498330,2.7,187.57,187.5,7.64701096]
[1760819498530,2.7,187.57,187.5,2.77932]
[1760819498730,6.0377843,187.55,187.5,0.14932]
[1760819498933,6.0377843,187.55,187.5,2.77932]
[1760819498934,3.3377843,187.55,187.5,2.77932]
[1760819499121,2.7,187.54,187.5,2.77932]
[1760819499522,2.7,187.51,187.5,0.14932]
[1760819500022,3.76,187.51,187.43,4.86769096]
[1760819500219,3.3377843,187.56,187.44,2.63]
[1760819500423,2.7,187.53,187.44,2.63]
[1760819500625,2.7,187.53,187.45,7.49769096]
[1760819501333,2.7,187.53,187.45,2.63]
[1760819501528,3.3377843,187.51,187.45,2.63]
[1760819501746,6.0377843,187.51,187.45,2.63]
[1760819501931,6.0377843,187.51,187.43,4.86769096]
[1760819502134,2.7,187.47,187.42,4.86769096]
[1760819502328,2.7,187.47,187.4,4.86769096]
[1760819502529,2.7,187.47,187.39,4.86769096]
[1760819502734,3.3377843,187.45,187.39,4.86769096]
[1760819502932,3.3377843,187.45,187.38,4.86769096]
[1760819502933,6.0377843,187.45,187.38,4.86769096]
[1760819503133,6.0377843,187.45,187.35,11.40544518]
[1760819503134,3.3377843,187.42,187.35,4.86769096]
[1760819503333,3.3377843,187.42,187.34,4.8028]
[1760819503629,3.3377843,187.42,187.34,4.86769096]
[1760819503842,2.7,187.44,187.35,2.63]
[1760819504634,2.7,187.44,187.36,4.8022]
[1760819505630,2.7,187.41,187.32,4.86769096]
[1760819505937,2.7,187.41,187.28,3.3377843]
[1760819505938,2.7,187.38,187.28,4.86769096]
[1760819506144,2.7,187.38,187.27,2.63]
[1760819506438,3.3377843,187.39,187.23,9.94082948]
[1760819506439,3.3377843,187.36,187.25,4.86769096]
[1760819506624,2.7,187.35,187.25,4.86769096]
[1760819506830,3.3377843,187.36,187.23,7.55769096]
[1760819507132,2.7,187.32,187.23,12.36329096]
[1760819507338,2.7,187.32,187.23,7.4956]
[1760819507739,2.7,187.32,187.23,12.36329096]
[1760819508333,2.7,187.32,187.23,7.4956]
[1760819508537,2.7,187.32,187.26,2.69]
[1760819508736,6.0377843,187.36,187.26,2.69]
[1760819509242,2.7,187.36,187.26,2.69]
[1760819510034,2.7,187.36,187.29,4.804]
[1760819510644,2.7,187.36,187.29,7.494]
[1760819511738,2.7,187.36,187.29,2.69]
[1760819518250,3.3377843,187.35,187.25,7.4949]
[1760819518450,2.7,187.34,187.25,7.4949]
[1760819520350,2.7,187.34,187.28,2.69]
[1760819521047,2.7,187.4,187.31,4.8035]
[1760819521752,2.7,187.4,187.3,2.69]
[1760819521950,2.7,187.4,187.28,4.8041]
[1760819522150,2.7,187.4,187.27,3.3377843]
[1760819522151,2.7,187.37,187.27,3.3377843]
[1760819522951,7.5021,187.37,187.27,8.1423843]
[1760819523147,2.7,187.36,187.27,4.8046]
[1760819527753,2.85,187.35,187.27,4.8046]
[1760819527952,4.8021,187.37,187.27,4.8046]
[1760819528254,2.85,187.35,187.27,4.8046]
[1760819529951,6.1877843,187.35,187.26,2.69]
[1760819531059,4.803,187.34,187.26,2.69]
[1760819531358,2.85,187.35,187.22,89.27720817]
[1760819531566,10.9919843,187.29,187.18,2.79]
[1760819531755,6.1877843,187.29,187.18,2.79]
[1760819531952,3.3377843,187.26,187.18,2.79]
[1760819532261,2.85,187.29,187.13,2.79]
[1760819532262,2.85,187.22,187.13,2.79]
[1760819533656,3.3377843,187.2,187.13,7.598]
[1760819534049,2.85,187.22,187.13,2.79]
[1760819534854,3.3377843,187.23,187.13,2.79]
[1760819535060,2.85,187.25,187.17,2.79]
[1760819535757,2.85,187.25,187.11,2.79]
[1760819535959,2.85,187.25,187.13,2.79]
[1760819536261,2.85,187.25,187.16,4.8074]
[1760819536657,2.85,187.27,187.16,4.8074]
[1760819537455,3.3377843,187.28,187.16,4.8074]
[1760819537656,2.85,187.24,187.15,2.6]
[1760819537856,2.85,187.24,187.13,4.808]
[1760819538063,2.85,187.21,187.13,4.808]
[1760819538363,2.85,187.21,187.11,2.6]
[1760819539056,7.6564,187.21,187.11,2.6]
[1760819539657,3.3377843,187.19,187.11,7.4085]
[1760819540157,2.85,187.21,187.11,7.4085]
[1760819540662,2.85,187.21,187.11,2.6]
[1760819540957,2.85,187.21,187.13,2.6]
[1760819541564,2.85,187.21,187.17,2.6]
[1760819541762,3.3377843,187.24,187.16,7.4074]
[1760819543567,2.85,187.23,187.16,7.4074]
[1760819543957,2.85,187.2,187.11,4.86765342]
[1760819544167,3.3377843,187.21,187.07,0.92989699]
[1760819544168,3.3377843,187.21,187.09,7.46765342]
[1760819544470,3.3377843,187.21,187.09,12.27685342]
[1760819544471,4.8067,187.19,187.09,12.27685342]
[1760819544768,6.1877843,187.18,187.09,12.27685342]
[1760819544960,6.1877843,187.18,187.09,7.4092]
[1760819545262,10.9948843,187.18,187.07,9.67735342]
[1760819545463,3.3377843,187.12,187.04,7.46765342]
[1760819545667,2.85,187.11,187.04,2.6]
[1760819546063,2.85,187.11,187.02,4.86765342]
[1760819546263,2.85,187.08,187.0,2.6]
[1760819546565,2.85,187.08,186.99,2.6]
[1760819546774,2.85,187.08,186.96,5.79806007]
[1760819546775,3.3377843,187.06,186.96,5.79806007]
[1760819546969,2.85,187.05,186.95,7.46765342]
[1760819547262,2.85,187.05,186.95,7.4128]
[1760819548272,2.85,187.05,186.95,2.6]
[1760819550062,2.85,187.05,186.96,4.8125]
[1760819550662,2.85,187.05,186.97,2.6]
[1760819551066,13.9577843,187.09,186.98,4.812]
[1760819551273,3.3377843,187.08,186.99,2.6]
[1760819551768,3.3377843,187.08,187.0,4.8115]
[1760819553069,3.3377843,187.08,186.99,2.6]
[1760819554975,2.85,187.09,187.02,2.6]
[1760819556477,6.1877843,187.09,187.02,2.6]
[1760819559680,6.1877843,187.09,187.01,4.8112]
[1760819559681,6.1877843,187.06,186.99,4.8117]
[1760819559878,2.85,187.05,186.99,4.8117]
[1760819560372,6.1877843,187.03,186.99,4.8117]
[1760819560768,3.3377843,187.03,187.0,2.6]
[1760819560974,3.3377843,187.06,187.0,7.4113]
[1760819561174,2.85,187.07,187.0,7.4113]
[1760819562178,6.1877843,187.04,186.97,4.8121]
[1760819562969,14.2277843,187.04,186.97,4.8121]
[1760819563167,6.1877843,187.04,186.97,4.8121]
[1760819563974,3.3377843,187.04,186.98,7.4118]
[1760819564370,3.3377843,187.04,186.98,2.6]
[1760819564569,3.3377843,187.06,187.0,7.4113]
[1760819565681,3.3377843,187.06,187.02,7.4109]
[1760819566074,6.1877843,187.06,187.02,7.4109]
[1760819567174,5.9277843,187.06,187.02,4.8109]
[1760819568379,3.3377843,187.05,187.0,4.8115]
[1760819568584,6.1677843,187.05,187.0,7.4215]
[1760819568776,6.1677843,187.05,187.0,4.8115]
[1760819568979,2.83,187.09,187.01,2.61]
[1760819569177,47.37,187.09,187.01,2.61]
[1760819569375,2.83,187.09,187.01,2.61]
[1760819569779,47.37,187.09,187.01,2.61]
[1760819569975,3.3377843,187.07,187.02,4.8108]
[1760819570172,6.1677843,187.07,187.01,2.61]
[1760819570679,6.1677843,187.07,187.0,4.8114]
[1760819570881,6.1677843,187.07,187.0,7.4214]
[1760819571479,6.1677843,187.07,187.0,2.61]
[1760819571684,3.3377843,187.07,187.0,2.61]
[1760819571875,3.3377843,187.07,187.02,4.8108]
[1760819572076,3.3377843,187.07,187.03,2.61]
[1760819572682,3.3377843,187.07,187.04,4.8103]
[1760819573083,3.3377843,187.07,187.04,7.4203]
[1760819573684,6.1677843,187.07,187.04,4.8103]
[1760819573886,3.3377843,187.07,187.04,7.4203]
[1760819574383,3.3377843,187.07,186.98,2.61]
[1760819574384,2.83,187.06,186.98,2.61]
[1760819574585,6.1677843,187.02,186.98,2.61]
[1760819574785,3.3377843,187.02,186.94,2.61]
[1760819575386,3.3377843,187.02,186.95,2.61]
[1760819576387,3.3377843,187.02,186.95,7.48917918]
[1760819576688,3.3377843,187.02,186.95,2.61]
[1760819577091,3.3377843,187.02,186.98,7.4217]
[1760819577296,3.3377843,187.02,186.99,2.61]
[1760819577697,7.64,187.06,186.99,4.8114]
[1760819577698,3.3377843,187.05,186.99,4.8114]
[1760819579795,3.3377843,187.05,186.98,2.61]
[1760819580793,3.3377843,187.05,187.01,4.8109]
[1760819580992,3.3377843,187.05,187.01,7.4209]
[1760819581192,3.3377843,187.05,187.02,2.61]
[1760819581388,3.3377843,187.08,187.02,4.8107]
[1760819581593,3.3377843,187.08,187.02,7.4207]
[1760819581995,6.1677843,187.08,187.04,2.61]
[1760819582394,2.83,187.07,187.04,2.61]
[1760819582599,2.83,187.07,187.01,7.4211]
[1760819582798,2.83,187.07,187.01,2.61]
[1760819583795,2.83,187.07,187.02,4.8107]
[1760819583995,2.83,187.07,187.03,2.61]
[1760819585396,6.1677843,187.08,187.02,4.8107]
[1760819586499,6.1677843,187.08,187.02,9.68987918]
[1760819587306,3.3377843,187.08,187.03,4.87917918]
[1760819587502,2.75,187.07,187.03,7.67917918]
[1760819588208,2.75,187.07,187.03,2.8]
[1760819588405,2.75,187.07,187.04,4.87917918]
[1760819588802,2.75,187.07,187.03,7.67917918]
[1760819589002,2.75,187.07,187.04,4.87917918]
[1760819589301,2.75,187.07,187.05,4.87917918]
[1760819589507,3.3377843,187.08,187.03,4.67861056]
[1760819589809,3.3377843,187.11,186.97,2.8]
[1760819589810,3.3377843,187.04,186.99,6.60304518]
[1760819590010,2.75,187.03,186.99,6.60304518]
[1760819590307,2.75,187.03,186.97,9.40304518]
[1760819591009,2.75,187.03,186.97,14.21504518]
[1760819591405,2.75,187.03,186.98,6.60304518]
[1760819591606,2.75,187.03,186.99,2.8]
[1760819593098,3.3377843,187.04,186.99,2.8]
[1760819593303,6.0877843,187.07,187.0,9.40304518]
[1760819593501,6.0877843,187.07,187.01,6.60304518]
[1760819595111,6.0877843,187.07,187.02,7.6107]
[1760819595906,2.75,187.06,187.02,4.8107]